[Event "Lviv Tradition May 2018"]
[Site "Lviv"]
[Date "2018.05.20"]
[Round "7"]
[White "Terletsky, Oleg"]
[Black "Badelka, Olga"]
[Result "1/2-1/2"]
[ECO "B32"]
[WhiteElo "2288"]
[BlackElo "2397"]
[Annotator "NA"]
[PlyCount "192"]
[EventDate "2018.??.??"]
[EventType "tourn"]
[EventCountry "UKR"]
[SourceTitle "playchess.com"]
[Source "ChessBase"]
[SourceQuality "1"]
[TimeControl "5400+30"]

1. e4 {[%emt 0:01:55]} c5 {[%emt 0:00:04]} 2. Nf3 {[%emt 0:00:04]} Nc6 {[%emt 0:00:03]} 3. d4 {[%emt 0:00:04]} cxd4 {[%emt 0:00:04]} 4. Nxd4 {[%emt 0:00:04]} e5 {[%emt 0:00:03]} 5. Nb5 {[%emt 0:00:08]} d6 {[%emt 0:00:04]} 6. N1c3 {[%emt 0:00:11]} a6 {[%emt 0:00:03]} 7. Na3 {[%emt 0:00:04]} Be7 {[%emt 0:00:04]} 8. Nc4 {[%emt 0:01:02]} b5 {[%emt 0:00:05] B32: Sicilian: Löwenthal and Kalashnikov Variations} 9. Ne3 {[%emt 0:00:04]} Nf6 {[%emt 0:00:06]} 10. g3 {[%emt 0:07:24]} O-O {[%emt 0:00:06]} 11. Bg2 {[%emt 0:00:04]} b4 {[%emt 0:00:03]} 12. Ncd5 {[%emt 0:00:24]} Nxd5 {[%emt 0:00:06] LiveBook: 83 Games} 13. Nxd5 {[%emt 0:01:17]} Bg5 {[%emt 0:00:08]} 14. O-O {[%emt 0:03:44]} Bxc1 {[%emt 0:00:05]} 15. Rxc1 {[%emt 0:00:47]} Be6 {[%emt 0:00:34]} 16. f4 {[%emt 0:10:50] [#]} exf4 $146 {[%emt 0:03:54]} 17. gxf4 {[%emt 0:01:17]} Rc8 {[%emt 0:04:12]} 18. c4 {[%emt 0:13:07]} bxc3 {[%emt 0:04:44]} 19. Rxc3 {[%emt 0:05:14]} Bxd5 {[%emt 0:01:25]} 20. Qxd5 {[%emt 0:07:58]} Qb6+ {[%emt 0:00:06]} 21. Kh1 {[%emt 0:00:06]} Nd4 {[%emt 0:15:27]} 22. Rd1 {[%emt 0:03:57]} Ne6 {[%emt 0:28:19]} 23. Qd2 {[%emt 0:07:02]} Rxc3 {[%emt 0:02:53]} 24. bxc3 {[%emt 0:00:06]} h6 {[%emt 0:08:44]} 25. f5 {[%emt 0:01:45]} Ng5 {[%emt 0:00:11]} 26. Qxd6 {[%emt 0:04:39]} Qf2 {[%emt 0:01:33]} 27. Qd2 {[%emt 0:03:29]} Qh4 {[%emt 0:01:02]} 28. Qe3 {[%emt 0:07:22]} Qg4 {[%emt 0:03:24]} 29. Rf1 {[%emt 0:00:53]} Rd8 {[%emt 0:06:29]} 30. h3 {[%emt 0:03:02]} Qh5 {[%emt 0:00:25]} 31. e5 {[%emt 0:00:10]} Rd1 {[%emt 0:01:12]} 32. Rxd1 {[%emt 0:00:48]} Qxd1+ {[%emt 0:00:05]} 33. Kh2 {[%emt 0:00:01]} Qa4 {[%emt 0:06:30]} 34. e6 {[%emt 0:02:00]} fxe6 {[%emt 0:00:04]} 35. fxe6 {[%emt 0:00:05]} Kf8 {[%emt 0:00:19]} 36. Qc5+ {[%emt 0:07:18]} Kg8 {[%emt 0:00:04]} 37. Qe5 $2 {[%emt 0:01:05]} (37. Qd6) 37... Qb5 {[%emt 0:05:53]} 38. Qxb5 {[%emt 0:04:56]} axb5 {[%emt 0:00:03]} 39. Bc6 {[%emt 0:02:03]} Nxe6 {[%emt 0:00:04]} 40. Bxb5 {[%emt 0:00:04]} Nc7 {[%emt 0:00:09]} 41. Bc4+ {[%emt 0:01:57]} Kf8 {[%emt 0:00:04]} 42. Kg3 {[%emt 0:00:09]} Ke7 {[%emt 0:00:08]} 43. Kf4 {[%emt 0:00:48]} Na8 {[%emt 0:04:47]} 44. Ke5 {[%emt 0:00:30]} Nb6 {[%emt 0:00:03]} 45. Bb5 {[%emt 0:00:18]} g5 {[%emt 0:00:10]} 46. Be2 {[%emt 0:02:08]} Na4 {[%emt 0:00:15]} 47. Kd4 {[%emt 0:00:18]} Kd6 {[%emt 0:00:06]} 48. c4 {[%emt 0:00:35]} Nc5 {[%emt 0:00:05]} 49. Bg4 {[%emt 0:00:14]} Na4 {[%emt 0:00:06]} 50. Bh5 {[%emt 0:00:35]} Nc5 {[%emt 0:00:10]} 51. Bf7 {[%emt 0:00:28]} Na4 {[%emt 0:00:18]} 52. a3 {[%emt 0:00:28]} Nc5 {[%emt 0:00:04]} 53. Bd5 {[%emt 0:00:57]} h5 $2 {[%emt 0:00:54]} 54. Ke3 {[%emt 0:00:23]} (54. Bf7 $18) 54... Nd7 $1 {[%emt 0:02:00]} 55. Kd4 {[%emt 0:00:34]} (55. a4 $14) 55... Nc5 {[%emt 0:00:31]} 56. Kc3 $2 {[%emt 0:00:20]} Kc7 $2 {[%emt 0:02:15] [#]} (56... g4 $11 {and Black is okay.}) 57. Bf3 $1 {[%emt 0:00:22]} h4 {[%emt 0:04:28]} 58. Kd4 {[%emt 0:00:33]} Kd6 {[%emt 0:00:04]} 59. Bg4 {[%emt 0:00:13]} Nb3+ {[%emt 0:00:05]} 60. Kc3 {[%emt 0:00:30]} Nc5 {[%emt 0:00:06]} 61. Kb4 {[%emt 0:00:12]} Nd3+ {[%emt 0:00:05]} 62. Kb5 {[%emt 0:00:37]} Nf2 {[%emt 0:00:13]} 63. Bf3 {[%emt 0:01:11]} Kc7 {[%emt 0:00:25]} 64. Bg2 {[%emt 0:00:11]} g4 {[%emt 0:00:37]} 65. hxg4 {[%emt 0:00:19]} Nxg4 $11 {[%emt 0:00:07]} 66. a4 {[%emt 0:00:10]} Ne3 {[%emt 0:04:13]} 67. Bh1 {[%emt 0:00:28]} Nd1 {[%emt 0:00:13]} 68. a5 {[%emt 0:00:12]} Nc3+ {[%emt 0:01:05]} 69. Kc5 {[%emt 0:00:18]} h3 {[%emt 0:00:48]} 70. a6 {[%emt 0:00:28]} Kb8 {[%emt 0:00:48]} 71. Kb6 {[%emt 0:01:01]} Na4+ {[%emt 0:00:04]} 72. Ka5 {[%emt 0:00:21]} Nc5 {[%emt 0:00:31]} 73. Kb5 {[%emt 0:00:11]} Nd7 {[%emt 0:00:31]} 74. c5 {[%emt 0:00:46]} Ka7 {[%emt 0:00:21]} 75. c6 {[%emt 0:00:54]} Nb6 {[%emt 0:00:04]} 76. c7 {[%emt 0:00:57]} h2 {[%emt 0:00:06]} 77. Bb7 {[%emt 0:00:23]} Nc8 {[%emt 0:00:05]} 78. Kc5 {[%emt 0:00:47]} Nb6 {[%emt 0:02:49]} 79. Kd6 {[%emt 0:00:18]} Nc8+ {[%emt 0:00:04]} 80. Kd7 {[%emt 0:00:38]} Nb6+ {[%emt 0:00:04]} 81. Kd8 {[%emt 0:00:31]} h1=Q {[%emt 0:00:05]} 82. Bxh1 {[%emt 0:00:04]} Kxa6 {[%emt 0:00:02]} 83. Bc6 {[%emt 0:00:51]} Ka5 {[%emt 0:00:22]} 84. Bb7 {[%emt 0:00:27]} Kb5 {[%emt 0:01:35]} 85. Ke8 {[%emt 0:00:28]} Kc5 {[%emt 0:00:56]} 86. Ke7 {[%emt 0:00:08]} Kb5 {[%emt 0:00:04]} 87. Kd6 {[%emt 0:00:32]} Nc4+ {[%emt 0:00:05]} 88. Kd5 {[%emt 0:01:00]} Nb6+ {[%emt 0:00:03]} 89. Ke6 {[%emt 0:00:30]} Kc5 {[%emt 0:00:38]} 90. Bf3 {[%emt 0:00:37]} Nc8 {[%emt 0:00:51]} 91. Kd7 {[%emt 0:00:20]} Nb6+ {[%emt 0:00:07]} 92. Kd8 {[%emt 0:00:33]} Kd6 {[%emt 0:00:21]} 93. Bb7 {[%emt 0:00:22]} Ke6 {[%emt 0:00:27]} 94. Bc8+ {[%emt 0:00:36]} Kd5 {[%emt 0:01:12]} 95. Bg4 {[%emt 0:00:24]} Kc6 {[%emt 0:00:25]} 96. Bh3 {[%emt 0:00:29]} Kd5 {[%emt 0:00:41]} 1/2-1/2

[Event "Lviv Tradition May 2018"]
[Site "Lviv"]
[Date "2018.05.20"]
[Round "8"]
[White "Badelka, Olga"]
[Black "Goluch, Piotr"]
[Result "1-0"]
[ECO "E70"]
[WhiteElo "2397"]
[BlackElo "2351"]
[Annotator "NA"]
[PlyCount "97"]
[EventDate "2018.??.??"]
[EventType "tourn"]
[EventCountry "UKR"]
[SourceTitle "playchess.com"]
[Source "ChessBase"]
[SourceQuality "1"]
[TimeControl "5400+30"]

1. c4 {[%emt 0:00:00]} Nf6 {[%emt 0:00:32]} 2. Nc3 {[%emt 0:00:00]} g6 {[%emt 0:00:53]} 3. d4 {[%emt 0:00:01]} Bg7 {[%emt 0:00:07]} 4. e4 {[%emt 0:00:03]} O-O {[%emt 0:00:05]} 5. Be2 {[%emt 0:00:22]} c5 {[%emt 0:01:13]} 6. d5 {[%emt 0:00:46]} d6 {[%emt 0:00:15]} 7. Nf3 {[%emt 0:02:54]} e6 {[%emt 0:00:40]} 8. Be3 {[%emt 0:00:33] E91: King's Indian: Classical: 6 Be2, unusual replies including 6...c5 and 6...Bg4} (8. Nd2 Re8 9. O-O Na6 10. f3 Nc7 11. a4 Na6 12. Ndb1 Nh5 13. Be3 e5 14. Na3 f5 15. Nc2 Nf4 16. exf5 gxf5 17. Qd2 Nb4 18. Bd1 {0-1 (43) Ding,L (2774)-Carlsen,M (2837) Saint Louis 2017}) 8... exd5 {[%emt 0:00:46]} 9. cxd5 {[%emt 0:00:05]} b5 {[%emt 0:06:15] LiveBook: 7 Games} 10. e5 {[%emt 0:00:04]} Ng4 {[%emt 0:01:01]} 11. Bg5 {[%emt 0:00:05]} f6 $146 {[%emt 0:01:51]} (11... Qb6 $11 {keeps the balance.}) ({Predecessor:} 11... Qa5 12. e6 Nf6 13. O-O a6 14. a4 b4 15. Bxf6 Bxf6 16. Ne4 Be7 17. exf7+ Rxf7 18. Nfg5 Rf4 19. g3 Rf5 20. Bg4 c4 21. Bxf5 gxf5 {1-0 (21) Buhmann,R (2567)-Freitag,M (2380) Austria 2017}) 12. exf6 {[%emt 0:00:32]} Bxf6 {[%emt 0:00:06]} 13. Bxf6 {[%emt 0:00:56]} Qxf6 {[%emt 0:00:05]} 14. Nxb5 {[%emt 0:04:11]} Nd7 {[%emt 0:05:05]} 15. O-O {[%emt 0:02:28]} Nb6 {[%emt 0:11:10]} 16. h3 {[%emt 0:08:06]} Nh6 {[%emt 0:03:23]} 17. Qd2 {[%emt 0:06:38]} Nf5 {[%emt 0:01:58]} 18. Rae1 {[%emt 0:01:51]} Bd7 {[%emt 0:03:19]} 19. Nc3 {[%emt 0:02:05]} Rae8 {[%emt 0:00:10]} 20. Bd3 {[%emt 0:02:31]} Nd4 {[%emt 0:00:26]} 21. Nxd4 {[%emt 0:00:46]} Qxd4 {[%emt 0:00:09]} 22. Qc2 {[%emt 0:03:39]} Kg7 {[%emt 0:06:57]} 23. Rxe8 {[%emt 0:03:12]} Rxe8 {[%emt 0:00:04]} 24. Bb5 {[%emt 0:03:42]} Bf5 {[%emt 0:02:36]} 25. Qc1 {[%emt 0:00:14]} Re5 {[%emt 0:05:46]} 26. Rd1 {[%emt 0:00:49]} Qh4 {[%emt 0:00:06]} 27. Bf1 {[%emt 0:02:37]} Bd7 {[%emt 0:03:03]} 28. g3 {[%emt 0:01:35]} Qh5 {[%emt 0:03:02]} 29. f4 {[%emt 0:02:33]} Re7 {[%emt 0:00:26]} 30. Re1 {[%emt 0:01:58]} Kf8 {[%emt 0:07:49]} 31. Rxe7 {[%emt 0:01:09]} Kxe7 {[%emt 0:00:02]} 32. Qe1+ {[%emt 0:05:30]} Kf8 {[%emt 0:00:35]} 33. g4 {[%emt 0:01:34]} Qh6 {[%emt 0:00:05]} 34. Qg3 {[%emt 0:03:11]} Qg7 {[%emt 0:00:07]} 35. Kf2 {[%emt 0:06:12]} Qd4+ {[%emt 0:01:54]} 36. Qe3 {[%emt 0:00:13]} Qb4 {[%emt 0:01:21]} 37. Qd2 {[%emt 0:03:45]} Na4 {[%emt 0:01:16]} 38. Ke3 {[%emt 0:04:41]} Nxb2 {[%emt 0:00:23]} 39. Ne4 {[%emt 0:03:03]} Qa3+ {[%emt 0:00:05]} 40. Kf2 {[%emt 0:00:49]} Qxa2 {[%emt 0:03:39]} (40... Qb4 $14) 41. Be2 {[%emt 0:01:19]} Qa4 {[%emt 0:01:48]} 42. Nf6 {[%emt 0:04:00]} Ke7 {[%emt 0:09:24]} (42... Bb5 $16 {was worth a try.}) 43. Nxd7 {[%emt 0:00:05]} ({Inferior is} 43. Nxh7 Qd4+ 44. Qe3+ Qxe3+ 45. Kxe3 a5 $15) 43... Qb3 {[%emt 0:00:53]} 44. Ne5 $18 {[%emt 0:02:52]} dxe5 {[%emt 0:00:05]} 45. fxe5 {[%emt 0:00:02]} c4 {[%emt 0:00:50]} 46. d6+ {[%emt 0:02:28]} Kd7 {[%emt 0:00:29]} 47. Qd5 {[%emt 0:01:42]} Qb6+ {[%emt 0:01:19]} 48. Kf1 {[%emt 0:00:27]} Nd3 {[%emt 0:01:10]} 49. e6+ {[%emt 0:01:20]} 1-0

[Event "Lviv Tradition May 2018"]
[Site "Lviv"]
[Date "2018.05.20"]
[Round "8"]
[White "Shkuran, Danylo"]
[Black "Oglaza, Oskar"]
[Result "0-1"]
[ECO "B91"]
[WhiteElo "2395"]
[BlackElo "2279"]
[Annotator "NA"]
[PlyCount "80"]
[EventDate "2018.??.??"]
[EventType "tourn"]
[EventCountry "UKR"]
[SourceTitle "playchess.com"]
[Source "ChessBase"]
[SourceQuality "1"]
[TimeControl "5400+30"]

1. e4 {[%emt 0:00:00]} c5 {[%emt 0:00:06]} 2. Nf3 {[%emt 0:00:00]} d6 {[%emt 0:00:10]} 3. d4 {[%emt 0:00:00]} cxd4 {[%emt 0:00:09]} 4. Nxd4 {[%emt 0:00:00]} Nf6 {[%emt 0:00:07]} 5. Nc3 {[%emt 0:00:01]} a6 {[%emt 0:00:06]} 6. g3 {[%emt 0:00:16]} e6 {[%emt 0:00:15]} 7. Bg2 {[%emt 0:00:08]} Be7 {[%emt 0:00:10]} 8. O-O {[%emt 0:00:09]} O-O {[%emt 0:01:44]} 9. f4 {[%emt 0:00:48]} Qc7 {[%emt 0:01:03]} 10. Be3 {[%emt 0:01:55] LiveBook: 47 Games} Nc6 {[%emt 0:00:11]} 11. Nxc6 {[%emt 0:03:08]} bxc6 {[%emt 0:00:12]} 12. g4 {[%emt 0:00:20]} d5 {[%emt 0:15:23]} 13. g5 {[%emt 0:10:58]} Nd7 {[%emt 0:09:22]} 14. Qh5 {[%emt 0:06:45] B80: Sizilianisch (Scheveninger System)} Rb8 {[%emt 0:06:04]} 15. f5 {[%emt 0:38:16]} exf5 $146 {[%emt 0:26:39]} ({Vorgänger:} 15... g6 16. Qh6 exf5 17. exf5 gxf5 18. Rf4 Qe5 19. Bd4 Bc5 20. Rd1 Bxd4+ 21. Rfxd4 Bb7 22. Rh4 Qg7 23. Bh3 Ne5 24. Kf2 Bc8 25. Re1 Ng6 {0-1 (25) Farkas,J (2275)-Juhasz,B (2315) Hungary 2001}) 16. exf5 {[%emt 0:02:05]} Rxb2 {[%emt 0:01:07]} 17. f6 {[%emt 0:14:59]} Qe5 {[%emt 0:06:14]} 18. Nd1 {[%emt 0:03:59] [#]} Nxf6 $1 {[%emt 0:00:21]} 19. gxf6 {[%emt 0:03:22]} Qxh5 {[%emt 0:00:12]} 20. fxe7 {[%emt 0:00:05]} Rxc2 {[%emt 0:00:38]} 21. exf8=Q+ {[%emt 0:00:08]} Kxf8 {[%emt 0:00:06]} 22. Rf2 {[%emt 0:02:27]} Bf5 {[%emt 0:07:38]} 23. Rxc2 {[%emt 0:02:57]} Bxc2 {[%emt 0:00:10]} 24. Bc5+ {[%emt 0:00:06]} Kg8 {[%emt 0:01:04]} 25. Nf2 {[%emt 0:00:16]} Qe5 {[%emt 0:02:15]} 26. Rc1 {[%emt 0:00:18]} Qc3 {[%emt 0:01:06]} 27. Ba7 {[%emt 0:01:31]} Qd2 {[%emt 0:01:10]} 28. Be3 {[%emt 0:00:18]} Qxe3 {[%emt 0:01:20]} 29. Rxc2 {[%emt 0:00:04]} Qb6 {[%emt 0:01:07]} 30. Rd2 {[%emt 0:03:26]} f5 {[%emt 0:01:30]} 31. Kf1 {[%emt 0:00:04]} f4 {[%emt 0:00:17]} 32. Nd1 {[%emt 0:00:13]} g5 {[%emt 0:00:58]} 33. h3 {[%emt 0:00:02]} Qb4 {[%emt 0:01:13]} 34. Re2 {[%emt 0:01:03]} Qa3 {[%emt 0:00:55]} 35. Rf2 {[%emt 0:00:51]} Kf7 {[%emt 0:00:40]} 36. Bf3 {[%emt 0:00:57]} Kf6 {[%emt 0:00:35]} 37. Bg4 {[%emt 0:01:18]} h5 {[%emt 0:00:32]} 38. Bd7 {[%emt 0:00:02]} Ke7 {[%emt 0:02:35]} 39. Bc8 $19 {[%emt 0:00:46]} Kd6 {[%emt 0:01:12]} 40. Rg2 {[%emt 0:01:19]} Qd3+ {[%emt 0:00:52]} 0-1

[Event "Lviv Tradition May 2018"]
[Site "Lviv"]
[Date "2018.05.20"]
[Round "8"]
[White "Bogdanov, Egor"]
[Black "Terletsky, Oleg"]
[Result "1/2-1/2"]
[ECO "E92"]
[WhiteElo "2335"]
[BlackElo "2288"]
[Annotator "NA"]
[PlyCount "117"]
[EventDate "2018.??.??"]
[EventType "tourn"]
[EventCountry "UKR"]
[SourceTitle "playchess.com"]
[Source "ChessBase"]
[SourceQuality "1"]
[TimeControl "5400+30"]

1. d4 {[%emt 0:00:00]} Nf6 {[%emt 0:01:18]} 2. c4 {[%emt 0:00:00]} g6 {[%emt 0:00:13]} 3. Nc3 {[%emt 0:00:00]} Bg7 {[%emt 0:00:09]} 4. e4 {[%emt 0:00:00]} d6 {[%emt 0:00:03]} 5. Nf3 {[%emt 0:00:00]} O-O {[%emt 0:00:07]} 6. Be2 {[%emt 0:00:08]} e5 {[%emt 0:00:13]} 7. Be3 {[%emt 0:00:15]} Ng4 {[%emt 0:04:33]} 8. Bg5 $1 {[%emt 0:00:06]} f6 {[%emt 0:00:03]} 9. Bh4 {[%emt 0:00:02] LiveBook: 1432 Games} Nc6 {[%emt 0:05:32]} 10. d5 {[%emt 0:14:39]} Ne7 {[%emt 0:00:39]} 11. h3 {[%emt 0:00:37] E92: King's Indian: Classical: 6 Be2 e5: 7 dxe5, 7 Be3 and Petrosian System without 7...Nbd7} (11. O-O g5 12. Bg3 h5 13. Nd2 f5 14. exf5 Nxf5 15. Nde4 Ngh6 16. Bxh5 g4 17. Bg6 Ne7 18. Bh5 Nef5 19. Bg6 Ne7 20. Bh5 Nef5 {½-½ (20) Ibrahimov,R (2518)-Amin,B (2689) Riadh 2017}) 11... Nh6 {[%emt 0:00:12]} 12. g4 {[%emt 0:00:49]} g5 {[%emt 0:09:34]} 13. Bg3 {[%emt 0:00:15]} Ng6 {[%emt 0:00:04] [#]} 14. Qd2 $146 {[%emt 0:01:35]} ({Predecessor:} 14. Nd2 Nf4 15. Nf1 Nf7 16. Ne3 a6 17. h4 b5 18. cxb5 Nxe2 19. Qxe2 axb5 20. Qxb5 {1-0 (39) Djukic,N (2546)-Sukovic,A (1999) Bar 2015}) 14... Nf7 {[%emt 0:00:27]} 15. Nd1 {[%emt 0:00:13]} c5 {[%emt 0:01:02]} 16. Ne3 {[%emt 0:00:26]} Nf4 {[%emt 0:00:21]} 17. Nf5 {[%emt 0:01:08]} a6 {[%emt 0:01:30]} 18. Bxf4 {[%emt 0:08:46]} exf4 {[%emt 0:00:51]} 19. O-O {[%emt 0:00:32]} Re8 {[%emt 0:01:25]} 20. Bd3 {[%emt 0:08:07]} Bd7 {[%emt 0:03:36]} 21. b4 {[%emt 0:01:15]} b5 {[%emt 0:06:50]} 22. Rfe1 {[%emt 0:00:52]} Bf8 {[%emt 0:02:10]} 23. Rab1 {[%emt 0:01:51]} Rb8 {[%emt 0:05:36]} 24. bxc5 {[%emt 0:11:18]} dxc5 {[%emt 0:01:22]} 25. e5 {[%emt 0:04:26]} fxe5 {[%emt 0:04:46]} 26. Qc2 {[%emt 0:00:54]} Rb6 {[%emt 0:09:27]} 27. Re2 {[%emt 0:07:27]} bxc4 {[%emt 0:01:31]} 28. Bxc4 {[%emt 0:08:02]} Rxb1+ {[%emt 0:04:22]} 29. Qxb1 {[%emt 0:00:06]} Bxf5 {[%emt 0:01:17]} 30. gxf5 {[%emt 0:03:08]} Nd6 {[%emt 0:01:03]} 31. Bd3 {[%emt 0:01:32]} c4 {[%emt 0:00:45]} 32. Bc2 {[%emt 0:01:09]} Qf6 {[%emt 0:06:54]} 33. Nd2 {[%emt 0:04:47]} h5 {[%emt 0:00:08]} 34. f3 {[%emt 0:02:40]} c3 {[%emt 0:01:02]} 35. Ne4 {[%emt 0:02:42]} Nxe4 {[%emt 0:00:07]} 36. Bxe4 {[%emt 0:00:03]} Bc5+ {[%emt 0:00:10]} 37. Kf1 {[%emt 0:01:14] [#]} g4 $1 {[%emt 0:00:35]} 38. Rg2 {[%emt 0:03:12]} g3 $2 {[%emt 0:00:05]} (38... Qh4 39. fxg4 Qxh3) 39. Rc2 {[%emt 0:00:12]} Bd4 {[%emt 0:05:56]} 40. Qb7 {[%emt 0:02:21]} Rd8 {[%emt 0:00:23]} 41. Kg2 {[%emt 0:01:58]} Rd6 {[%emt 0:01:17]} 42. Rc1 {[%emt 0:02:17] [#]} Rb6 $1 {[%emt 0:01:13]} 43. Qc8+ {[%emt 0:00:15]} Kg7 {[%emt 0:03:52]} (43... Qf8 $19 {und Schwarz behält klar die Oberhand.} 44. Qxf8+ Kxf8) 44. Rb1 {[%emt 0:01:12]} Rxb1 {[%emt 0:04:41]} 45. Bxb1 {[%emt 0:00:49]} Qd6 {[%emt 0:01:23]} 46. Qb7+ {[%emt 0:02:20]} Kf8 {[%emt 0:00:46]} 47. Bc2 {[%emt 0:00:53] [#]} h4 {[%emt 0:01:52] [#]} ({Black should play} 47... Bb6 $1 $17 48. Qc8+ Bd8) 48. f6 $1 {[%emt 0:01:43]} Qxf6 {[%emt 0:00:35]} 49. Qb8+ {[%emt 0:00:01]} Kg7 {[%emt 0:02:44]} 50. d6 {[%emt 0:00:40]} e4 {[%emt 0:00:58]} 51. Qc7+ {[%emt 0:00:51]} Kh6 {[%emt 0:01:15]} 52. Bxe4 {[%emt 0:01:03]} Be5 {[%emt 0:01:27]} 53. Qh7+ {[%emt 0:01:07]} Kg5 {[%emt 0:00:02]} 54. d7 {[%emt 0:01:10]} Bc7 {[%emt 0:00:13]} 55. Qg8+ {[%emt 0:00:13]} Kh6 {[%emt 0:00:11]} 56. Qh7+ $11 {[%emt 0:02:05]} Kg5 {[%emt 0:00:02]} 57. Qg8+ {[%emt 0:01:49]} Kh6 {[%emt 0:00:07]} 58. Qh7+ {[%emt 0:00:01]} Kg5 {[%emt 0:00:10]} 59. Qg8+ {[%emt 0:01:14]} 1/2-1/2

[Event "Lviv Tradition May 2018"]
[Site "Lviv"]
[Date "2018.05.20"]
[Round "8"]
[White "Peng, Li Min"]
[Black "Galperin, Platon"]
[Result "1-0"]
[ECO "B24"]
[WhiteElo "2320"]
[BlackElo "2332"]
[Annotator "NA"]
[PlyCount "85"]
[EventDate "2018.??.??"]
[EventType "tourn"]
[EventCountry "UKR"]
[SourceTitle "playchess.com"]
[Source "ChessBase"]
[SourceQuality "1"]
[TimeControl "5400+30"]

1. e4 {[%emt 0:00:00]} c5 {[%emt 0:01:20]} 2. Nc3 {[%emt 0:04:09]} Nc6 {[%emt 0:01:46]} 3. Bb5 {[%emt 0:00:06]} Nd4 {[%emt 0:00:06]} 4. Bc4 {[%emt 0:00:04]} a6 {[%emt 0:00:04] B23: Closed Sicilian: Lines without g3} 5. a4 {[%emt 0:01:23]} g6 {[%emt 0:00:33]} 6. Nf3 {[%emt 0:00:30]} Bg7 {[%emt 0:00:12]} 7. Nxd4 {[%emt 0:08:10]} cxd4 {[%emt 0:00:33]} 8. Qf3 {[%emt 0:00:09]} e6 {[%emt 0:00:50] LiveBook: 4 Partien} 9. Ne2 {[%emt 0:00:33]} Ne7 {[%emt 0:00:10]} 10. O-O {[%emt 0:00:14]} O-O {[%emt 0:00:14]} 11. d3 {[%emt 0:00:39]} f5 $146 {[%emt 0:01:47]} ({Predecessor:} 11... b6 12. Qh3 {1-0 (43) Danielyan,V (2331)-Can,E (2603) Batumi 2018}) 12. Qg3 {[%emt 0:07:05]} h6 {[%emt 0:10:28]} 13. Bf4 {[%emt 0:04:32]} g5 {[%emt 0:01:28]} 14. Bc7 {[%emt 0:01:39]} Qe8 {[%emt 0:01:38]} 15. f4 {[%emt 0:06:00]} Qh5 {[%emt 0:02:48]} 16. Rae1 {[%emt 0:00:35]} fxe4 {[%emt 0:00:13]} 17. dxe4 {[%emt 0:00:08]} d5 {[%emt 0:00:05]} 18. Bd3 {[%emt 0:08:53]} Bd7 {[%emt 0:03:25]} 19. e5 {[%emt 0:04:26]} Bxa4 {[%emt 0:02:06]} 20. Bd6 {[%emt 0:09:22]} Nf5 {[%emt 0:02:29]} 21. Bxf5 $1 {[%emt 0:00:07]} Rxf5 {[%emt 0:00:10]} 22. Nxd4 {[%emt 0:00:09]} gxf4 {[%emt 0:00:38]} 23. Qa3 {[%emt 0:03:02]} Be8 {[%emt 0:02:58]} 24. Nxf5 {[%emt 0:00:16]} Qxf5 {[%emt 0:00:07]} 25. Qc5 {[%emt 0:04:38]} h5 {[%emt 0:01:16]} 26. c3 {[%emt 0:07:53]} Bb5 {[%emt 0:01:21]} 27. Rf2 {[%emt 0:00:11]} Kh8 {[%emt 0:01:58]} 28. Be7 {[%emt 0:03:41]} Kh7 {[%emt 0:06:21]} 29. Bf6 {[%emt 0:00:37]} Bh6 {[%emt 0:00:01]} 30. Qe7+ {[%emt 0:00:39]} Kg6 {[%emt 0:00:12]} 31. Qxb7 {[%emt 0:05:34]} Rg8 {[%emt 0:01:49]} 32. b3 {[%emt 0:00:26]} Bd3 {[%emt 0:01:28]} 33. Qc6 {[%emt 0:01:22]} h4 {[%emt 0:00:49]} 34. Bxh4 {[%emt 0:20:08]} Kh5 {[%emt 0:01:38]} 35. Be7 {[%emt 0:00:02]} Be4 {[%emt 0:03:24]} 36. h4 {[%emt 0:02:29]} f3 {[%emt 0:01:00]} 37. Bg5 $1 {[%emt 0:00:34]} Bxg5 {[%emt 0:00:49]} 38. hxg5 {[%emt 0:00:03]} Rxg5 {[%emt 0:04:12]} 39. Qe8+ {[%emt 0:01:45]} ({Don't blunder} 39. Qxa6 $2 Qh3 $19) 39... Kg4 {[%emt 0:00:12]} 40. Qh8 $14 {[%emt 0:00:38]} Qg6 {[%emt 0:01:26]} 41. Qh3+ {[%emt 0:00:40]} Kf4 {[%emt 0:00:09]} 42. Rxf3+ {[%emt 0:00:10]} Kxe5 {[%emt 0:00:16]} 43. Qh2+ {[%emt 0:00:05]} 1-0